[Event "Early-Titled-Tuesday-Blitz-April-02-2024"]
[Site "Chess.com"]
[Date "2024.04.02"]
[Round "8"]
[White "Sasha_Solovev_777"]
[Black "PapaieDudu"]
[Result "0-1"]
[WhiteElo "2229"]
[BlackElo "2381"]
[TimeControl "180+1"]
[EndTime "9:26:39 PDT"]
[Termination "PapaieDudu won by resignation"]

1. e4 {[%clk 0:02:59.1]} 1... c5 {[%clk 0:03:00.4]} 2. Nf3 {[%clk 0:02:58.2]}
2... d6 {[%clk 0:03:00.9]} 3. d4 {[%clk 0:02:57.1]} 3... cxd4 {[%clk 0:03:01.8]}
4. Nxd4 {[%clk 0:02:57.4]} 4... Nf6 {[%clk 0:03:02.5]} 5. Nc3 {[%clk 0:02:57.6]}
5... a6 {[%clk 0:03:03.3]} 6. Be3 {[%clk 0:02:56.9]} 6... e6 {[%clk 0:03:03.4]}
7. f3 {[%clk 0:02:50.5]} 7... b5 {[%clk 0:03:03.9]} 8. Qd2 {[%clk 0:02:49.4]}
8... Nbd7 {[%clk 0:03:04.4]} 9. O-O-O {[%clk 0:02:48.8]} 9... Bb7 {[%clk
0:03:05]} 10. g4 {[%clk 0:02:48.8]} 10... Nb6 {[%clk 0:03:03.6]} 11. g5 {[%clk
0:02:44.3]} 11... Nfd7 {[%clk 0:03:03.4]} 12. h4 {[%clk 0:02:43.3]} 12... Rc8
{[%clk 0:03:03.7]} 13. Kb1 {[%clk 0:02:31.6]} 13... Be7 {[%clk 0:03:03.7]} 14.
h5 {[%clk 0:02:30.1]} 14... b4 {[%clk 0:03:02.6]} 15. Nce2 {[%clk 0:02:17.3]}
15... Nc4 {[%clk 0:03:02.9]} 16. Qc1 {[%clk 0:02:16.9]} 16... d5 {[%clk
0:03:01.4]} 17. Rg1 {[%clk 0:01:54]} 17... dxe4 {[%clk 0:02:59.7]} 18. f4 {[%clk
0:01:54.2]} 18... Qa5 {[%clk 0:02:46.1]} 19. g6 {[%clk 0:01:39.7]} 19... hxg6
{[%clk 0:02:44.5]} 20. hxg6 {[%clk 0:01:39.4]} 20... Nf6 {[%clk 0:02:44]} 21.
gxf7+ {[%clk 0:01:35.3]} 21... Kxf7 {[%clk 0:02:43.6]} 22. f5 {[%clk 0:00:52.2]}
22... exf5 {[%clk 0:02:40.8]} 23. Nf4 {[%clk 0:00:52.4]} 23... Ng4 {[%clk
0:02:35.1]} 24. Bxc4+ {[%clk 0:00:48.4]} 24... Rxc4 {[%clk 0:02:33.9]} 25. Nb3
{[%clk 0:00:32.2]} 25... Qc7 {[%clk 0:02:25.9]} 26. Bd4 {[%clk 0:00:24.1]} 26...
Rh2 {[%clk 0:02:18.4]} 27. Rg2 {[%clk 0:00:20.2]} 27... Bg5 {[%clk 0:02:00.6]}
28. Rxh2 {[%clk 0:00:19.2]} 28... Bxf4 {[%clk 0:02:01]} 29. Rh5 {[%clk
0:00:13.9]} 29... Bxc1 {[%clk 0:01:59.8]} 30. Rxf5+ {[%clk 0:00:14.1]} 30... Kg6
{[%clk 0:02:00.4]} 31. Rf8 {[%clk 0:00:10]} 31... Bg5 {[%clk 0:01:58.1]} 0-1

[Event "Early-Titled-Tuesday-Blitz-April-02-2024"]
[Site "Chess.com"]
[Date "2024.04.02"]
[Round "8"]
[White "IshviAggarwal"]
[Black "C_K_G"]
[Result "0-1"]
[WhiteElo "2143"]
[BlackElo "2272"]
[TimeControl "180+1"]
[EndTime "9:26:50 PDT"]
[Termination "C_K_G won by resignation"]

1. d4 {[%clk 0:02:54.9]} 1... d5 {[%clk 0:02:58.6]} 2. c4 {[%clk 0:02:54.4]}
2... e6 {[%clk 0:02:57.6]} 3. Nf3 {[%clk 0:02:54.1]} 3... Nf6 {[%clk 0:02:56.3]}
4. cxd5 {[%clk 0:02:53.9]} 4... exd5 {[%clk 0:02:55.7]} 5. Nc3 {[%clk 0:02:54]}
5... a6 {[%clk 0:02:54.9]} 6. Bg5 {[%clk 0:02:54.2]} 6... Be7 {[%clk 0:02:55]}
7. e3 {[%clk 0:02:54.2]} 7... O-O {[%clk 0:02:53.7]} 8. Qc2 {[%clk 0:02:54.4]}
8... h6 {[%clk 0:02:53.5]} 9. Bh4 {[%clk 0:02:54]} 9... Re8 {[%clk 0:02:53.2]}
10. Bd3 {[%clk 0:02:53]} 10... b6 {[%clk 0:02:52.6]} 11. O-O {[%clk 0:02:52.8]}
11... Nbd7 {[%clk 0:02:52.4]} 12. Ne5 {[%clk 0:02:52.8]} 12... Bb7 {[%clk
0:02:51.8]} 13. f4 {[%clk 0:02:52.4]} 13... c5 {[%clk 0:02:50.2]} 14. Nxf7
{[%clk 0:02:32.7]} 14... Kxf7 {[%clk 0:02:46.5]} 15. Bg6+ {[%clk 0:02:33.3]}
15... Kg8 {[%clk 0:02:44.9]} 16. Bxe8 {[%clk 0:02:32.4]} 16... Nxe8 {[%clk
0:02:41.4]} 17. Bxe7 {[%clk 0:02:30.7]} 17... Qxe7 {[%clk 0:02:42.3]} 18. Rad1
{[%clk 0:02:30.4]} 18... Qxe3+ {[%clk 0:02:41.5]} 19. Kh1 {[%clk 0:02:31.1]}
19... Nef6 {[%clk 0:02:20.3]} 20. dxc5 {[%clk 0:02:29.4]} 20... Nxc5 {[%clk
0:02:21.2]} 21. Qg6 {[%clk 0:02:20.5]} 21... Nce4 {[%clk 0:02:01.6]} 22. Nxe4
{[%clk 0:02:16.3]} 22... dxe4 {[%clk 0:01:55]} 23. Rc1 {[%clk 0:02:11.4]} 23...
Qe2 {[%clk 0:01:37.8]} 24. Rfe1 {[%clk 0:02:04.6]} 24... Qd2 {[%clk 0:01:34.8]}
25. Red1 {[%clk 0:02:03.7]} 25... Qxf4 {[%clk 0:01:22.3]} 26. Rf1 {[%clk
0:01:56.2]} 26... Qg5 {[%clk 0:01:20.9]} 27. Qxg5 {[%clk 0:01:37.1]} 27... hxg5
{[%clk 0:01:20]} 28. Rc7 {[%clk 0:01:37.8]} 28... Bd5 {[%clk 0:01:17.7]} 29. Rf5
{[%clk 0:01:37.6]} 29... e3 {[%clk 0:01:10.3]} 30. Rxg5 {[%clk 0:01:35.7]} 30...
e2 {[%clk 0:01:04.8]} 31. Re7 {[%clk 0:01:29.4]} 31... Be4 {[%clk 0:00:57.6]}
32. Rgxg7+ {[%clk 0:01:21.7]} 32... Kh8 {[%clk 0:00:57.4]} 0-1

[Event "Early-Titled-Tuesday-Blitz-April-02-2024"]
[Site "Chess.com"]
[Date "2024.04.02"]
[Round "8"]
[White "Pragmatist237"]
[Black "KorolDimitriy75"]
[Result "1-0"]
[WhiteElo "2276"]
[BlackElo "2371"]
[TimeControl "180+1"]
[EndTime "9:26:58 PDT"]
[Termination "Pragmatist237 won on time"]

1. e4 {[%clk 0:03:00.9]} 1... c5 {[%clk 0:03:00]} 2. Nf3 {[%clk 0:02:59.3]} 2...
d6 {[%clk 0:03:00.4]} 3. d4 {[%clk 0:02:58.9]} 3... cxd4 {[%clk 0:03:01.3]} 4.
Qxd4 {[%clk 0:02:59.5]} 4... a6 {[%clk 0:03:00.9]} 5. Be2 {[%clk 0:02:58.2]}
5... Nc6 {[%clk 0:03:01.5]} 6. Qe3 {[%clk 0:02:56.7]} 6... g6 {[%clk 0:03:01.9]}
7. O-O {[%clk 0:02:56.3]} 7... Bg7 {[%clk 0:03:02.2]} 8. c4 {[%clk 0:02:57]}
8... Nf6 {[%clk 0:03:02.6]} 9. Nc3 {[%clk 0:02:57.6]} 9... O-O {[%clk
0:03:02.5]} 10. h3 {[%clk 0:02:57.3]} 10... Nd7 {[%clk 0:03:02.3]} 11. a3 {[%clk
0:02:54.6]} 11... a5 {[%clk 0:03:01.1]} 12. Rb1 {[%clk 0:02:47.9]} 12... a4
{[%clk 0:03:00.6]} 13. Rd1 {[%clk 0:02:43.6]} 13... Nc5 {[%clk 0:02:55]} 14. Bd2
{[%clk 0:02:36.3]} 14... h6 {[%clk 0:02:45.2]} 15. Nb5 {[%clk 0:02:35.6]} 15...
Bd7 {[%clk 0:02:13.7]} 16. Bc3 {[%clk 0:02:34.5]} 16... Qb6 {[%clk 0:00:14]} 17.
Bxg7 {[%clk 0:02:00.6]} 17... Kxg7 {[%clk 0:00:14.9]} 18. Nc3 {[%clk 0:01:57]}
18... Be6 {[%clk 0:00:13.7]} 19. Nd5 {[%clk 0:01:54.5]} 19... Qa7 {[%clk
0:00:09.9]} 20. Nd4 {[%clk 0:01:47.4]} 20... Rac8 {[%clk 0:00:02.9]} 21. Nf4
{[%clk 0:01:39.8]} 21... Bd7 {[%clk 0:00:02.5]} 22. Nd5 {[%clk 0:01:34.1]} 22...
Be6 {[%clk 0:00:02.2]} 23. Qc3 {[%clk 0:01:26.1]} 1-0

[Event "Early-Titled-Tuesday-Blitz-April-02-2024"]
[Site "Chess.com"]
[Date "2024.04.02"]
[Round "8"]
[White "frequentblunders"]
[Black "maurovargas01"]
[Result "1-0"]
[WhiteElo "2220"]
[BlackElo "1855"]
[TimeControl "180+1"]
[EndTime "9:27:01 PDT"]
[Termination "frequentblunders won by checkmate"]

1. d3 {[%clk 0:02:58.7]} 1... e5 {[%clk 0:02:52.4]} 2. f4 {[%clk 0:02:58.7]}
2... Nc6 {[%clk 0:02:48.5]} 3. Nf3 {[%clk 0:02:58.9]} 3... d6 {[%clk 0:02:44.4]}
4. e4 {[%clk 0:02:44.9]} 4... g6 {[%clk 0:02:37.3]} 5. Nc3 {[%clk 0:02:45.3]}
5... Bg7 {[%clk 0:02:36]} 6. Be2 {[%clk 0:02:44.3]} 6... exf4 {[%clk 0:02:31.9]}
7. Bxf4 {[%clk 0:02:45.2]} 7... Nf6 {[%clk 0:02:31.5]} 8. O-O {[%clk 0:02:44.9]}
8... O-O {[%clk 0:02:31.2]} 9. h3 {[%clk 0:02:41.7]} 9... Nh5 {[%clk 0:02:28.8]}
10. Be3 {[%clk 0:02:38.8]} 10... Ng3 {[%clk 0:02:23.5]} 11. Rf2 {[%clk
0:02:36.8]} 11... Nxe2+ {[%clk 0:02:22.1]} 12. Qxe2 {[%clk 0:02:34.9]} 12... b6
{[%clk 0:02:11.9]} 13. Raf1 {[%clk 0:02:20.1]} 13... Bb7 {[%clk 0:02:09.2]} 14.
Bg5 {[%clk 0:02:12.9]} 14... f6 {[%clk 0:02:05.3]} 15. Be3 {[%clk 0:02:00.2]}
15... f5 {[%clk 0:01:55.6]} 16. Kh1 {[%clk 0:01:53.9]} 16... fxe4 {[%clk
0:01:54.2]} 17. dxe4 {[%clk 0:01:54]} 17... Qe8 {[%clk 0:01:50.4]} 18. Nd5
{[%clk 0:01:51.9]} 18... Rc8 {[%clk 0:01:39.7]} 19. Bc1 {[%clk 0:01:24.6]} 19...
Nd4 {[%clk 0:01:30.4]} 20. Nxd4 {[%clk 0:01:22.8]} 20... Bxd4 {[%clk 0:01:29.8]}
21. Rxf8+ {[%clk 0:01:21.4]} 21... Qxf8 {[%clk 0:01:25.6]} 22. Rxf8+ {[%clk
0:01:22.3]} 22... Kxf8 {[%clk 0:01:23]} 23. Bh6+ {[%clk 0:01:18.1]} 23... Kg8
{[%clk 0:01:21.9]} 24. Ne7+ {[%clk 0:01:17.6]} 24... Kf7 {[%clk 0:01:20.7]} 25.
Nxc8 {[%clk 0:01:17.8]} 25... Bxc8 {[%clk 0:01:21.4]} 26. c3 {[%clk 0:01:16.5]}
26... Bf6 {[%clk 0:01:18.9]} 27. Qf3 {[%clk 0:01:15.8]} 27... Ke7 {[%clk
0:01:18.3]} 28. Bf8+ {[%clk 0:01:13.6]} 28... Kf7 {[%clk 0:01:16.3]} 29. g4
{[%clk 0:01:10.2]} 29... g5 {[%clk 0:01:12.6]} 30. h4 {[%clk 0:01:04.5]} 30...
h6 {[%clk 0:01:10.6]} 31. Bxh6 {[%clk 0:01:02.5]} 31... Kg6 {[%clk 0:01:09.7]}
32. h5+ {[%clk 0:00:59.6]} 32... Kf7 {[%clk 0:01:07.2]} 33. Bxg5 {[%clk
0:00:59.3]} 33... Bxg4 {[%clk 0:01:06.2]} 34. Qxf6+ {[%clk 0:01:00.2]} 34... Kg8
{[%clk 0:01:04.8]} 35. h6 {[%clk 0:01:00.2]} 35... Bh5 {[%clk 0:01:04.3]} 36.
Qg7# {[%clk 0:00:59.7]} 1-0

[Event "Early-Titled-Tuesday-Blitz-April-02-2024"]
[Site "Chess.com"]
[Date "2024.04.02"]
[Round "8"]
[White "Vahe_Danielyan"]
[Black "shimastream"]
[Result "0-1"]
[WhiteElo "2643"]
[BlackElo "3008"]
[TimeControl "180+1"]
[EndTime "9:27:02 PDT"]
[Termination "shimastream won on time"]

1. e4 {[%clk 0:03:00.9]} 1... c6 {[%clk 0:02:53.9]} 2. d4 {[%clk 0:03:00.9]}
2... d5 {[%clk 0:02:54.7]} 3. e5 {[%clk 0:03:01.6]} 3... Bf5 {[%clk 0:02:53]} 4.
h4 {[%clk 0:03:02.2]} 4... a6 {[%clk 0:02:52.2]} 5. g4 {[%clk 0:02:43.7]} 5...
Bd7 {[%clk 0:02:51.4]} 6. f4 {[%clk 0:02:43.3]} 6... h5 {[%clk 0:02:47.6]} 7. g5
{[%clk 0:02:34.4]} 7... g6 {[%clk 0:02:37.5]} 8. Bd3 {[%clk 0:02:30.5]} 8... Bg4
{[%clk 0:02:36.5]} 9. Qd2 {[%clk 0:02:22.1]} 9... e6 {[%clk 0:02:35.1]} 10. Ne2
{[%clk 0:02:04.8]} 10... c5 {[%clk 0:02:33.5]} 11. c3 {[%clk 0:02:03.7]} 11...
Nc6 {[%clk 0:02:32.7]} 12. dxc5 {[%clk 0:01:26.8]} 12... Bxc5 {[%clk 0:02:31.7]}
13. b4 {[%clk 0:01:27.4]} 13... Ba7 {[%clk 0:02:30.7]} 14. Na3 {[%clk
0:01:25.1]} 14... Nge7 {[%clk 0:02:28.4]} 15. Ng3 {[%clk 0:01:18]} 15... O-O
{[%clk 0:02:26.4]} 16. Nc2 {[%clk 0:01:15.9]} 16... b5 {[%clk 0:02:16.6]} 17. a4
{[%clk 0:01:14.6]} 17... d4 {[%clk 0:02:15.7]} 18. Ne4 {[%clk 0:00:52.4]} 18...
dxc3 {[%clk 0:02:14.2]} 19. Qxc3 {[%clk 0:00:53.3]} 19... Nd4 {[%clk 0:02:12.2]}
20. Be3 {[%clk 0:00:46.2]} 20... Rc8 {[%clk 0:02:09.1]} 21. Nc5 {[%clk
0:00:42.5]} 21... Nxc2+ {[%clk 0:01:47.7]} 22. Qxc2 {[%clk 0:00:39.8]} 22... Nd5
{[%clk 0:01:47.9]} 23. Bd2 {[%clk 0:00:39.7]} 23... a5 {[%clk 0:01:48.4]} 24.
axb5 {[%clk 0:00:37.8]} 24... Nxb4 {[%clk 0:01:42.5]} 25. Bxb4 {[%clk
0:00:36.9]} 25... Qd4 {[%clk 0:01:43.1]} 26. Qc3 {[%clk 0:00:21.7]} 26... Qe3+
{[%clk 0:01:43]} 27. Kf1 {[%clk 0:00:19.4]} 27... Qxf4+ {[%clk 0:01:40.7]} 28.
Ke1 {[%clk 0:00:15.4]} 28... axb4 {[%clk 0:01:38.9]} 29. Qd2 {[%clk 0:00:08.4]}
29... Qxe5+ {[%clk 0:01:38.1]} 30. Ne4 {[%clk 0:00:07.5]} 30... Qxa1+ {[%clk
0:01:37.7]} 0-1

[Event "Early-Titled-Tuesday-Blitz-April-02-2024"]
[Site "Chess.com"]
[Date "2024.04.02"]
[Round "8"]
[White "Ginger_GM"]
[Black "Savagelittlemole"]
[Result "1-0"]
[WhiteElo "2634"]
[BlackElo "2528"]
[TimeControl "180+1"]
[EndTime "9:27:14 PDT"]
[Termination "Ginger_GM won by resignation"]

1. e4 {[%clk 0:03:00.9]} 1... c5 {[%clk 0:02:59.4]} 2. Be2 {[%clk 0:03:00.2]}
2... g6 {[%clk 0:02:58.7]} 3. f4 {[%clk 0:02:59.2]} 3... Bg7 {[%clk 0:02:58.8]}
4. Nf3 {[%clk 0:02:58.5]} 4... Nc6 {[%clk 0:02:52.7]} 5. O-O {[%clk 0:02:57.7]}
5... d6 {[%clk 0:02:53.2]} 6. d3 {[%clk 0:02:55.7]} 6... Bg4 {[%clk 0:02:49.6]}
7. Nbd2 {[%clk 0:02:52.6]} 7... Nd4 {[%clk 0:02:46.2]} 8. Nxd4 {[%clk 0:02:48]}
8... Bxd4+ {[%clk 0:02:47.1]} 9. Kh1 {[%clk 0:02:47.6]} 9... Bxe2 {[%clk
0:02:47.3]} 10. Qxe2 {[%clk 0:02:47.9]} 10... Bg7 {[%clk 0:02:22.6]} 11. f5
{[%clk 0:02:38.9]} 11... Nf6 {[%clk 0:02:15.8]} 12. Qf2 {[%clk 0:02:31.5]} 12...
Qd7 {[%clk 0:02:12.4]} 13. Nc4 {[%clk 0:02:25]} 13... O-O {[%clk 0:01:51]} 14.
Qh4 {[%clk 0:02:21.3]} 14... b5 {[%clk 0:01:34.6]} 15. Ne3 {[%clk 0:02:20]}
15... Qb7 {[%clk 0:01:19.8]} 16. Rf3 {[%clk 0:02:06.6]} 16... Rfe8 {[%clk
0:00:32.4]} 17. Rh3 {[%clk 0:02:04]} 17... c4 {[%clk 0:00:29.7]} 18. Bd2 {[%clk
0:01:56.2]} 18... cxd3 {[%clk 0:00:29.4]} 19. cxd3 {[%clk 0:01:56.2]} 19... Rac8
{[%clk 0:00:29.6]} 20. Bc3 {[%clk 0:01:54.5]} 20... h6 {[%clk 0:00:16.7]} 21.
Bxf6 {[%clk 0:01:38.2]} 21... exf6 {[%clk 0:00:17.6]} 22. Ng4 {[%clk 0:01:38.1]}
22... h5 {[%clk 0:00:06.2]} 23. Nxf6+ {[%clk 0:01:37.6]} 23... Bxf6 {[%clk
0:00:05.9]} 24. Qxf6 {[%clk 0:01:37.8]} 24... Qe7 {[%clk 0:00:06]} 25. Qd4
{[%clk 0:01:12.5]} 25... Qe5 {[%clk 0:00:03.9]} 26. Qf2 {[%clk 0:01:13.1]} 26...
Qxb2 {[%clk 0:00:02.9]} 27. Qxb2 {[%clk 0:01:12.2]} 1-0

[Event "Early-Titled-Tuesday-Blitz-April-02-2024"]
[Site "Chess.com"]
[Date "2024.04.02"]
[Round "8"]
[White "zajka-molotok"]
[Black "Binary010"]
[Result "1/2-1/2"]
[WhiteElo "2567"]
[BlackElo "2778"]
[TimeControl "180+1"]
[EndTime "9:27:17 PDT"]
[Termination "Game drawn by repetition"]

1. b3 {[%clk 0:03:00.9]} 1... e5 {[%clk 0:02:59.8]} 2. Bb2 {[%clk 0:03:01.5]}
2... Nc6 {[%clk 0:03:00.3]} 3. e3 {[%clk 0:03:01.6]} 3... Nf6 {[%clk 0:03:00.8]}
4. Nf3 {[%clk 0:03:01.3]} 4... e4 {[%clk 0:03:00.5]} 5. Ne5 {[%clk 0:03:01.2]}
5... Ne7 {[%clk 0:02:52.3]} 6. f3 {[%clk 0:02:53]} 6... d6 {[%clk 0:02:47.8]} 7.
Nc4 {[%clk 0:02:22.9]} 7... Ng6 {[%clk 0:02:47.1]} 8. fxe4 {[%clk 0:02:16]} 8...
Nxe4 {[%clk 0:02:39.9]} 9. Qf3 {[%clk 0:02:14.9]} 9... d5 {[%clk 0:02:22.4]} 10.
Ne5 {[%clk 0:01:39.2]} 10... Nxe5 {[%clk 0:02:01.8]} 11. Bxe5 {[%clk 0:01:40.1]}
11... Qe7 {[%clk 0:02:02]} 12. Bb2 {[%clk 0:01:36.6]} 12... Be6 {[%clk
0:02:01.4]} 13. Bd3 {[%clk 0:01:33.8]} 13... f5 {[%clk 0:01:52.8]} 14. Nc3
{[%clk 0:01:31.1]} 14... O-O-O {[%clk 0:01:51.4]} 15. O-O-O {[%clk 0:01:28.5]}
15... Qd7 {[%clk 0:01:42.7]} 16. Ne2 {[%clk 0:01:27.3]} 16... Bd6 {[%clk
0:01:16]} 17. Nd4 {[%clk 0:01:27.4]} 17... Be5 {[%clk 0:01:15.9]} 18. Kb1 {[%clk
0:01:24.3]} 18... Rhf8 {[%clk 0:01:11.4]} 19. Rhf1 {[%clk 0:01:14.5]} 19... g6
{[%clk 0:01:04.9]} 20. g4 {[%clk 0:01:05.6]} 20... Ng5 {[%clk 0:00:52.6]} 21.
Qf2 {[%clk 0:00:57.9]} 21... Nh3 {[%clk 0:00:49.6]} 22. Qf3 {[%clk 0:00:50.1]}
22... Ng5 {[%clk 0:00:48.7]} 23. Qf2 {[%clk 0:00:50.4]} 23... Nh3 {[%clk
0:00:16.5]} 24. Qf3 {[%clk 0:00:50.4]} 24... Ng5 {[%clk 0:00:16]} 1/2-1/2

[Event "Early-Titled-Tuesday-Blitz-April-02-2024"]
[Site "Chess.com"]
[Date "2024.04.02"]
[Round "8"]
[White "akanga001"]
[Black "MusicCityMaster"]
[Result "0-1"]
[WhiteElo "2142"]
[BlackElo "2436"]
[TimeControl "180+1"]
[EndTime "9:27:17 PDT"]
[Termination "MusicCityMaster won by resignation"]

1. d4 {[%clk 0:03:00.9]} 1... Nf6 {[%clk 0:02:58.8]} 2. Nf3 {[%clk 0:03:01]}
2... g6 {[%clk 0:02:57.4]} 3. Bg5 {[%clk 0:03:00.7]} 3... Bg7 {[%clk 0:02:57.5]}
4. e3 {[%clk 0:03:00.4]} 4... O-O {[%clk 0:02:57.6]} 5. Nbd2 {[%clk 0:03:00.2]}
5... d6 {[%clk 0:02:58.1]} 6. c3 {[%clk 0:02:51.7]} 6... b6 {[%clk 0:02:58]} 7.
Be2 {[%clk 0:02:51.2]} 7... Bb7 {[%clk 0:02:58.2]} 8. a4 {[%clk 0:02:49.7]} 8...
a6 {[%clk 0:02:58.1]} 9. O-O {[%clk 0:02:49]} 9... c5 {[%clk 0:02:58.1]} 10. Qc2
{[%clk 0:02:44.9]} 10... cxd4 {[%clk 0:02:58.1]} 11. exd4 {[%clk 0:02:42.3]}
11... Nbd7 {[%clk 0:02:58.2]} 12. Rae1 {[%clk 0:02:39.1]} 12... Rc8 {[%clk
0:02:58]} 13. Bd3 {[%clk 0:02:29.8]} 13... Re8 {[%clk 0:02:56.5]} 14. Ne4 {[%clk
0:02:28]} 14... Qc7 {[%clk 0:02:37.6]} 15. Qd2 {[%clk 0:02:21.5]} 15... Nxe4
{[%clk 0:02:01.2]} 16. Bxe4 {[%clk 0:02:20.8]} 16... Nf6 {[%clk 0:02:02]} 17.
Bxb7 {[%clk 0:02:15.1]} 17... Qxb7 {[%clk 0:02:02.9]} 18. Re2 {[%clk 0:02:05.2]}
18... Qc6 {[%clk 0:01:57.9]} 19. Qc2 {[%clk 0:01:59.1]} 19... e6 {[%clk
0:01:53.9]} 20. Rfe1 {[%clk 0:01:58.2]} 20... Nd5 {[%clk 0:01:50.4]} 21. Bc1
{[%clk 0:01:48.5]} 21... b5 {[%clk 0:01:31.6]} 22. axb5 {[%clk 0:01:47.5]} 22...
axb5 {[%clk 0:01:32.5]} 23. Qd1 {[%clk 0:01:43.2]} 23... b4 {[%clk 0:01:28.7]}
24. cxb4 {[%clk 0:01:32.9]} 24... Nxb4 {[%clk 0:01:26.7]} 25. Bf4 {[%clk
0:01:28.8]} 25... Red8 {[%clk 0:01:17.5]} 26. Qb3 {[%clk 0:01:27]} 26... Qc4
{[%clk 0:00:56.1]} 27. Qxc4 {[%clk 0:01:11.6]} 27... Rxc4 {[%clk 0:00:57]} 28.
Bg5 {[%clk 0:01:08.4]} 28... Rdc8 {[%clk 0:00:55.5]} 29. h4 {[%clk 0:00:56.7]}
29... h6 {[%clk 0:00:54.1]} 30. Bf4 {[%clk 0:00:54.5]} 30... Nd3 {[%clk
0:00:53.6]} 31. Bxd6 {[%clk 0:00:48.4]} 31... Nxe1 {[%clk 0:00:53.2]} 32. Rxe1
{[%clk 0:00:49]} 32... Bxd4 {[%clk 0:00:52.4]} 33. Nxd4 {[%clk 0:00:45.9]} 33...
Rxd4 {[%clk 0:00:52.9]} 34. Re2 {[%clk 0:00:45.9]} 34... Rxd6 {[%clk 0:00:52.7]}
0-1

[Event "Early-Titled-Tuesday-Blitz-April-02-2024"]
[Site "Chess.com"]
[Date "2024.04.02"]
[Round "8"]
[White "Fy_Rakotomaharo"]
[Black "noblerone"]
[Result "1-0"]
[WhiteElo "2701"]
[BlackElo "2553"]
[TimeControl "180+1"]
[EndTime "9:27:23 PDT"]
[Termination "Fy_Rakotomaharo won by resignation"]

1. e4 {[%clk 0:03:00.9]} 1... c5 {[%clk 0:02:53.1]} 2. a4 {[%clk 0:03:01.2]}
2... Nc6 {[%clk 0:02:48.2]} 3. Bb5 {[%clk 0:03:00.9]} 3... Nd4 {[%clk
0:02:47.4]} 4. c3 {[%clk 0:03:01.3]} 4... Nxb5 {[%clk 0:02:43]} 5. axb5 {[%clk
0:03:02.2]} 5... b6 {[%clk 0:02:42.6]} 6. d4 {[%clk 0:02:58]} 6... Bb7 {[%clk
0:02:38.1]} 7. d5 {[%clk 0:02:55.6]} 7... g6 {[%clk 0:02:35.9]} 8. Nf3 {[%clk
0:02:51.4]} 8... Bg7 {[%clk 0:02:34.7]} 9. O-O {[%clk 0:02:50.4]} 9... Nf6
{[%clk 0:02:27.8]} 10. Re1 {[%clk 0:02:48.7]} 10... O-O {[%clk 0:02:24]} 11. c4
{[%clk 0:02:46.3]} 11... d6 {[%clk 0:02:21.5]} 12. Nc3 {[%clk 0:02:46]} 12... e5
{[%clk 0:02:18.4]} 13. Bg5 {[%clk 0:02:15]} 13... h6 {[%clk 0:02:14.2]} 14. Bd2
{[%clk 0:02:13.5]} 14... Ne8 {[%clk 0:01:55.7]} 15. Ra3 {[%clk 0:02:11.1]} 15...
f5 {[%clk 0:01:52.4]} 16. Qa1 {[%clk 0:02:05.6]} 16... Qb8 {[%clk 0:01:31.7]}
17. Qa2 {[%clk 0:02:03]} 17... Nf6 {[%clk 0:01:29.3]} 18. exf5 {[%clk
0:01:59.5]} 18... gxf5 {[%clk 0:01:30.2]} 19. Ra1 {[%clk 0:01:59.7]} 19... Ne4
{[%clk 0:01:19.4]} 20. Be1 {[%clk 0:01:58.1]} 20... Qc7 {[%clk 0:01:11.2]} 21.
Nxe4 {[%clk 0:01:52.6]} 21... fxe4 {[%clk 0:01:10.9]} 22. Nd2 {[%clk 0:01:53.4]}
22... Qf7 {[%clk 0:00:53.7]} 23. Nxe4 {[%clk 0:01:52]} 23... Qf4 {[%clk
0:00:50]} 24. Nxd6 {[%clk 0:01:48.7]} 24... Bc8 {[%clk 0:00:37.7]} 25. Rf3
{[%clk 0:01:29.5]} 25... Qg4 {[%clk 0:00:29.1]} 26. Rxf8+ {[%clk 0:01:20]} 26...
Bxf8 {[%clk 0:00:29.1]} 27. Nxc8 {[%clk 0:01:19.9]} 27... Rxc8 {[%clk
0:00:29.6]} 28. Qxa7 {[%clk 0:01:18.2]} 28... Qxc4 {[%clk 0:00:28.9]} 29. Qxb6
{[%clk 0:01:14.3]} 29... Qe4 {[%clk 0:00:10.3]} 30. Qe6+ {[%clk 0:01:13.2]} 1-0

[Event "Early-Titled-Tuesday-Blitz-April-02-2024"]
[Site "Chess.com"]
[Date "2024.04.02"]
[Round "8"]
[White "slidingknight2775"]
[Black "CSB7"]
[Result "1/2-1/2"]
[WhiteElo "2612"]
[BlackElo "2772"]
[TimeControl "180+1"]
[EndTime "9:27:24 PDT"]
[Termination "Game drawn by agreement"]

1. Nf3 {[%clk 0:03:00.9]} 1... d5 {[%clk 0:02:58.7]} 2. e3 {[%clk 0:02:57.7]}
2... Nf6 {[%clk 0:02:56.2]} 3. b3 {[%clk 0:02:56.9]} 3... c5 {[%clk 0:02:52.4]}
4. Bb2 {[%clk 0:02:56.6]} 4... e6 {[%clk 0:02:53.2]} 5. Bb5+ {[%clk 0:02:56.1]}
5... Bd7 {[%clk 0:02:52.5]} 6. Be2 {[%clk 0:02:55.4]} 6... Nc6 {[%clk
0:02:50.6]} 7. O-O {[%clk 0:02:55.1]} 7... Bd6 {[%clk 0:02:47.7]} 8. d4 {[%clk
0:02:55]} 8... cxd4 {[%clk 0:02:26.7]} 9. Nxd4 {[%clk 0:02:55.9]} 9... O-O
{[%clk 0:02:20.8]} 10. c4 {[%clk 0:02:52]} 10... Rc8 {[%clk 0:02:12.7]} 11. Nc3
{[%clk 0:02:30.6]} 11... dxc4 {[%clk 0:02:02.4]} 12. Bxc4 {[%clk 0:02:31.5]}
12... a6 {[%clk 0:01:58.1]} 13. Nf3 {[%clk 0:02:27.2]} 13... Qc7 {[%clk
0:01:50.2]} 14. h3 {[%clk 0:02:23.5]} 14... Rfd8 {[%clk 0:01:47.6]} 15. Qe2
{[%clk 0:02:16.7]} 15... b5 {[%clk 0:01:08.8]} 16. Bd3 {[%clk 0:02:13]} 16...
Ne5 {[%clk 0:01:09.1]} 17. Nxe5 {[%clk 0:02:09.4]} 17... Bxe5 {[%clk 0:01:10]}
18. Ne4 {[%clk 0:02:00.5]} 18... Bxb2 {[%clk 0:00:44.3]} 19. Qxb2 {[%clk
0:02:01.4]} 19... Nxe4 {[%clk 0:00:43.9]} 20. Bxe4 {[%clk 0:02:02.3]} 20... Bc6
{[%clk 0:00:44.4]} 21. Rac1 {[%clk 0:01:57.3]} 21... Qb6 {[%clk 0:00:43.5]} 22.
Bxc6 {[%clk 0:01:56.1]} 22... Rxc6 {[%clk 0:00:44.4]} 23. Rxc6 {[%clk
0:01:56.1]} 23... Qxc6 {[%clk 0:00:45.3]} 24. Rc1 {[%clk 0:01:56.3]} 24... Qd6
{[%clk 0:00:44.5]} 25. Qc3 {[%clk 0:01:28.6]} 25... h5 {[%clk 0:00:42.3]} 26.
Qa5 {[%clk 0:01:25.7]} 26... g6 {[%clk 0:00:37.8]} 27. a4 {[%clk 0:01:20.9]}
27... bxa4 {[%clk 0:00:32.3]} 28. Qxa4 {[%clk 0:01:21.8]} 28... Rb8 {[%clk
0:00:16.4]} 29. Ra1 {[%clk 0:01:16.1]} 29... Qb6 {[%clk 0:00:13.4]} 30. g3
{[%clk 0:01:11.3]} 30... Qxb3 {[%clk 0:00:12.1]} 31. Qxb3 {[%clk 0:01:12.2]}
31... Rxb3 {[%clk 0:00:12.3]} 32. Rxa6 {[%clk 0:01:12.9]} 32... Kg7 {[%clk
0:00:13.1]} 33. h4 {[%clk 0:01:12.9]} 33... Rb1+ {[%clk 0:00:12]} 1/2-1/2